Workbook

Sheet Menu
D1: =IF(ISNA(VLOOKUP(E1,A100:$B$500,2,0)),0,VLOOKUP(E1,A100:$B$500,2,0)) -> 4173 | E1: =+DFES!E1 -> 4173
B10: 2023/24 Cheque Book School Instalment Payments
B11: Please Left Click on the Macro Button below to continue.
B12: If the aforementioned does not function, please refer to the Macro Guidance from this link: | M12: Macro guidance
B13: Should the Protected View message be visible on the Toolbar, click on Enable Editing.
A100: 2010 | B100: 2010
A101: 1017 | B101: 1017
A102: 2300 | B102: 2300
A103: 7016 | B103: 7016
A104: 5413 | B104: 5413
A105: 2402 | B105: 2402
A106: 2401 | B106: 2401
A107: 4115 | B107: 4115
A108: 2030 | B108: 2030
A109: 2238 | B109: 2238
A110: 2236 | B110: 2236
A111: 4801 | B111: 4801
A112: 2312 | B112: 2312
A113: 7051 | B113: 7051
A114: 2251 | B114: 2251
A115: 3002 | B115: 3002
A116: 3319 | B116: 3319
A117: 5416 | B117: 5416
A118: 2054 | B118: 2054
A119: 2053 | B119: 2053
A120: 2055 | B120: 2055
A121: 2486 | B121: 2486
A122: 2296 | B122: 2296
A123: 2092 | B123: 2092
A124: 4015 | B124: 4015
A125: 4201 | B125: 4201
A126: 4223 | B126: 4223
A127: 2015 | B127: 2015
A128: 2462 | B128: 2462
A129: 2127 | B129: 2127
A130: 2129 | B130: 2129
A131: 2128 | B131: 2128
A132: 2133 | B132: 2133
A133: 3322 | B133: 3322
A134: 2416 | B134: 2416
A135: 4245 | B135: 4245
A136: 3323 | B136: 3323
A137: 7053 | B137: 7053
A138: 4173 | B138: 4173
A139: 7033 | B139: 7033
A140: 4177 | B140: 4177
A141: 1038 | B141: 1038
A142: 2174 | B142: 2174
A143: 3363 | B143: 3363
A144: 3377 | B144: 3377
A145: 3371 | B145: 3371
A146: 3016 | B146: 3016
A147: 4606 | B147: 4606
A148: 3428 | B148: 3428
A149: 7014 | B149: 7014
A150: 7009 | B150: 7009
A151: 5203 | B151: 5203
A152: 5202 | B152: 5202
A153: 2308 | B153: 2308
A154: 2011 | B154: 2011
A155: 4193 | B155: 4193
A156: 2293 | B156: 2293
A157: 2225 | B157: 2225
A158: 2412 | B158: 2412
A159: 4237 | B159: 4237

Sheet School List (hidden)
CA1: ok
A4: DFE
A5: Number | C5: Name
A6: 2010 | C6: Adderley Primary School
A7: 1017 | C7: Allens Croft Childrens Centre
A8: 2300 | C8: Arden Primary
A9: 7016 | C9: Baskerville School
A10: 5413 | C10: Bishop Challoner Catholic College
A11: 2402 | C11: Boldmere Infant & Nursery School
A12: 2401 | C12: Boldmere Junior School
A13: 4115 | C13: Bordesley Green Girls School
A14: 2030 | C14: Bordesley Green Primary School
A15: 2238 | C15: Broadmeadow Infant & Nursery School
A16: 2236 | C16: Broadmeadow Junior School
A17: 4801 | C17: Cardinal Wiseman Catholic Technology College
A18: 2312 | C18: Chad Vale Primary School
A19: 7051 | C19: Cherry Oak School
A20: 2251 | C20: Chilcote Primary School
A21: 3002 | C21: Christ Church CE Primary School
A22: 3319 | C22: Christ The King Catholic Primary School
A23: 5416 | C23: Colmers School and Sixth Form College
A24: 2054 | C24: Colmore Infant School
A25: 2053 | C25: Colmore Junior School
A26: 2055 | C26: Cotteridge Primary
A27: 2486 | C27: Forestdale Primary School
A28: 2296 | C28: Glenmead Primary School
A29: 2092 | C29: Hall Green Junior School
A30: 4015 | C30: Hodge Hill Girls School
A31: 4201 | C31: Hodge Hill School
A32: 4223 | C32: Holte School
A33: 2015 | C33: James Watt Primary School
A34: 2462 | C34: Little Sutton Primary School
A35: 2127 | C35: Lozells J & I School
A36: 2129 | C36: Lyndon Green Infant School
A37: 2128 | C37: Lyndon Green Junior School
A38: 2133 | C38: Marsh Hill Primary School
A39: 3322 | C39: Maryvale Catholic Primary School
A40: 2416 | C40: Moor Hall Primary
A41: 4245 | C41: Moseley School
A42: 3323 | C42: Oratory R C Primary School
A43: 7053 | C43: Oscott Manor
A44: 4173 | C44: Queensbridge School
A45: 7033 | C45: Selly Oak Trust School
A46: 4177 | C46: Selly Park Tech College For Girls
A47: 1038 | C47: Shenleyfields Nursery School
A48: 2174 | C48: Sladefield Infants School
A49: 3363 | C49: St Dunstans Primary School
A50: 3377 | C50: St Jude's Catholic Primary School
A51: 3371 | C51: St Laurence Church Infant School
A52: 3016 | C52: St Matthew's CE Primary School
A53: 4606 | C53: St Pauls Girls School
A54: 3428 | C54: St Peters CE Primary School
A55: 7014 | C55: Uffculme School
A56: 7009 | C56: Victoria School
A57: 5203 | C57: Walmley Infant School
A58: 5202 | C58: Walmley Junior School
A59: 2308 | C59: Welford School
A60: 2011 | C60: Wheelers Lane Primary School
A61: 4193 | C61: Wheelers Lane Secondary
A62: 2293 | C62: William Murdoch Primary School
A63: 2225 | C63: Worlds End Junior School
A64: 2412 | C64: Wylde Green Primary School
A65: 4237 | C65: Swanshurst

Sheet DFES (hidden)
A1: 2010 | B1: AX085 | C1: Adderley Primary School | E1: 4173 | F1: =IF(ISNA(VLOOKUP($E$1,$A$1:$C$72,3,0)),0,VLOOKUP($E$1,$A$1:$C$72,3,0)) -> Queensbridge School | Z1: 2011/12 | AA1: 2010/11 | AB1: January 2011 CENSUS | AC1: January 2010 CENSUS
A2: 1017 | B2: AX087 | C2: Allens Croft Childrens Centre
A3: 2300 | B3: AX008 | C3: Arden Primary
A4: 7016 | B4: AX00E | C4: Baskerville School
A5: 5413 | B5: AX08C | C5: Bishop Challoner Catholic College
A6: 2402 | B6: AX08G | C6: Boldmere Infant & Nursery School
A7: 2401 | B7: AX00T | C7: Boldmere Junior School
A8: 4115 | B8: AX08J | C8: Bordesley Green Girls School
A9: 2030 | B9: AX08H | C9: Bordesley Green Primary School
A10: 2238 | B10: AX08N | C10: Broadmeadow Infant & Nursery School
A11: 2236 | B11: AX010 | C11: Broadmeadow Junior School
A12: 4801 | B12: AX08U | C12: Cardinal Wiseman Catholic Technology College
A13: 2312 | B13: AX015 | C13: Chad Vale Primary School
A14: 7051 | B14: AX017 | C14: Cherry Oak School
A15: 2251 | B15: AX08W | C15: Chilcote Primary School
A16: 3002 | B16: AX01A | C16: Christ Church CE Primary School
A17: 3319 | B17: AX019 | C17: Christ The King Catholic Primary School
A18: 5416 | B18: AX091 | C18: Colmers School and Sixth Form College
A19: 2054 | B19: AX092 | C19: Colmore Infant School
A20: 2053 | B20: AX093 | C20: Colmore Junior School
A21: 2055 | B21: AX01J | C21: Cotteridge Primary
A22: 2486 | B22: AX01Z | C22: Forestdale Primary School
A23: 2296 | B23: AX027 | C23: Glenmead Primary School
A24: 2092 | B24: AX02H | C24: Hall Green Junior School
A25: 4015 | B25: AX0A2 | C25: Hodge Hill Girls School
A26: 4201 | B26: AX0A1 | C26: Hodge Hill School
A27: 4223 | B27: AX0A4 | C27: Holte School
A28: 2015 | B28: AX032 | C28: James Watt Primary School
A29: 2462 | B29: AX03L | C29: Little Sutton Primary School
A30: 2127 | B30: AX0AN | C30: Lozells J & I School
A31: 2129 | B31: AX03N | C31: Lyndon Green Infant School
A32: 2128 | B32: AX03P | C32: Lyndon Green Junior School
A33: 2133 | B33: AX03V | C33: Marsh Hill Primary School
A34: 3322 | B34: AX03X | C34: Maryvale Catholic Primary School
A35: 2416 | B35: AX041 | C35: Moor Hall Primary
A36: 4245 | B36: AX0AW | C36: Moseley School
A37: 3323 | B37: AX049 | C37: Oratory R C Primary School
A38: 7053 | B38: AX04C | C38: Oscott Manor
A39: 4173 | B39: AX0BD | C39: Queensbridge School
A40: 7033 | B40: AX0BK | C40: Selly Oak Trust School
A41: 4177 | B41: AX0BL | C41: Selly Park Tech College For Girls
A42: 1038 | B42: AX056 | C42: Shenleyfields Nursery School
A43: 2174 | B43: AX0BR | C43: Sladefield Infants School
A44: 3363 | B44: AX05Q | C44: St Dunstans Primary School
A45: 3377 | B45: AX066 | C45: St Jude's Catholic Primary School
A46: 3371 | B46: AX067 | C46: St Laurence Church Infant School
A47: 3016 | B47: AX06F | C47: St Matthew's CE Primary School
A48: 4606 | B48: AX0C4 | C48: St Pauls Girls School
A49: 3428 | B49: AX06L | C49: St Peters CE Primary School
A50: 7014 | B50: AX07A | C50: Uffculme School
A51: 7009 | B51: AX0CG | C51: Victoria School
A52: 5203 | B52: AX0CH | C52: Walmley Infant School
A53: 5202 | B53: AX0CJ | C53: Walmley Junior School
A54: 2308 | B54: AX0CL | C54: Welford School
A55: 2011 | B55: AX07P | C55: Wheelers Lane Primary School
A56: 4193 | B56: AX07N | C56: Wheelers Lane Secondary
A57: 2293 | B57: AX07T | C57: William Murdoch Primary School
A58: 2225 | B58: AX0CQ | C58: Worlds End Junior School
A59: 2412 | B59: AX07Y | C59: Wylde Green Primary School
A60: 4237 | B60: AX0C8 | C60: Swanshurst
A72: FFT | C72: FAIR FUNDING TEAM

Sheet Schedule (hidden)
F1: =+DFES!$E$1 -> 4173
B3: 2023/24 Cheque Book School Instalment Payments
B5: School: | D5: =+DFES!$F$1 -> Queensbridge School
B6: DFE No: | D6: =+DFES!$E$1 -> 4173
B9: Section 251 Budget 2023/24 | K9: £ | L9: £
B11: Total SBS (From APT 23/24) | L11: =IF(ISNA(VLOOKUP(DFES!$E$1,DATA!$A$1:$CK$299,7,0)),0,VLOOKUP(DFES!$E$1,DATA!$A$1:$CK$299,7,0)) -> 6107141.744
B13: High Needs Place Funding | L13: =IF(ISNA(VLOOKUP(DFES!$E$1,DATA!$A$1:$CK$299,8,0)),0,VLOOKUP(DFES!$E$1,DATA!$A$1:$CK$299,8,0)) -> 0
B14: High Needs Resource Base Funding | L14: =IF(ISNA(VLOOKUP(DFES!$E$1,DATA!$A$1:$CK$299,9,0)),0,VLOOKUP(DFES!$E$1,DATA!$A$1:$CK$299,9,0)) -> 0
B15: Teachers Pay / Pension | L15: =IF(ISNA(VLOOKUP(DFES!$E$1,DATA!$A$1:$CK$299,10,0)),0,VLOOKUP(DFES!$E$1,DATA!$A$1:$CK$299,10,0)) -> 0
B16: Early Years Funding | L16: =IF(ISNA(VLOOKUP(DFES!$E$1,DATA!$A$1:$CK$299,11,0)),0,VLOOKUP(DFES!$E$1,DATA!$A$1:$CK$299,11,0)) -> 0
B17: Post 16 Funding Apr - Jul | L17: =IF(ISNA(VLOOKUP(DFES!$E$1,DATA!$A$1:$CK$299,12,0)),0,VLOOKUP(DFES!$E$1,DATA!$A$1:$CK$299,12,0)) -> 0
B18: Post 16 Funding Aug - Mar | L18: =IF(ISNA(VLOOKUP(DFES!$E$1,DATA!$A$1:$CK$299,13,0)),0,VLOOKUP(DFES!$E$1,DATA!$A$1:$CK$299,13,0)) -> 0
B19: Devolved Top Up (Special Only) | L19: =IF(ISNA(VLOOKUP(DFES!$E$1,DATA!$A$1:$CK$299,14,0)),0,VLOOKUP(DFES!$E$1,DATA!$A$1:$CK$299,14,0)) -> 0
B21: Less Insurance Deductions (Based on 22/23) | K21: =IF(ISNA(VLOOKUP(DFES!$E$1,DATA!$A$1:$CK$299,15,0)),0,VLOOKUP(DFES!$E$1,DATA!$A$1:$CK$299,15,0)) -> -21050
B23: Revised School Budget Share | L23: =IF(ISNA(VLOOKUP(DFES!$E$1,DATA!$A$1:$CK$299,16,0)),0,VLOOKUP(DFES!$E$1,DATA!$A$1:$CK$299,16,0)) -> 6086091.744
B25: Less Interest (Top Slice rate at 0.0158%) (Based on 22/23) | K25: =IF(ISNA(VLOOKUP(DFES!$E$1,DATA!$A$1:$CK$299,17,0)),0,VLOOKUP(DFES!$E$1,DATA!$A$1:$CK$299,17,0)) -> -803.3641102
B28: Total | L28: =IF(ISNA(VLOOKUP(DFES!$E$1,DATA!$A$1:$CK$299,18,0)),0,VLOOKUP(DFES!$E$1,DATA!$A$1:$CK$299,18,0)) -> 6085288.38
B31: Actual Payments 2023/24
B32: Month | L32: £
B34: Duplicated 22-23 School Supplemetary Grant | F34: *Deducted from April Instalment | L34: =-IF(ISNA(VLOOKUP(DFES!$E$1,DATA!$A$1:$CK$299,21,0)),0,VLOOKUP(DFES!$E$1,DATA!$A$1:$CK$299,21,0)) -> 97253
B35: 2023-04-01 | L35: =IF(ISNA(VLOOKUP(DFES!$E$1,DATA!$A$1:$CK$299,25,0)),0,VLOOKUP(DFES!$E$1,DATA!$A$1:$CK$299,25,0)) -> 409854.365
B36: 2023-05-01 | L36: =IF(ISNA(VLOOKUP(DFES!$E$1,DATA!$A$1:$CK$299,29,0)),0,VLOOKUP(DFES!$E$1,DATA!$A$1:$CK$299,29,0)) -> 507107.365
B37: 2023-06-01 | L37: =IF(ISNA(VLOOKUP(DFES!$E$1,DATA!$A$1:$CK$299,33,0)),0,VLOOKUP(DFES!$E$1,DATA!$A$1:$CK$299,33,0)) -> 507107.365
B38: 2023-07-01 | L38: =IF(ISNA(VLOOKUP(DFES!$E$1,DATA!$A$1:$CK$299,37,0)),0,VLOOKUP(DFES!$E$1,DATA!$A$1:$CK$299,37,0)) -> 507107.365
B39: 2023-08-01 | L39: =IF(ISNA(VLOOKUP(DFES!$E$1,DATA!$A$1:$CK$299,41,0)),0,VLOOKUP(DFES!$E$1,DATA!$A$1:$CK$299,41,0)) -> 507107.365
B40: 2023-09-01 | L40: =IF(ISNA(VLOOKUP(DFES!$E$1,DATA!$A$1:$CK$299,45,0)),0,VLOOKUP(DFES!$E$1,DATA!$A$1:$CK$299,45,0)) -> 507107.365
B41: 2023-10-01 | L41: =IF(ISNA(VLOOKUP(DFES!$E$1,DATA!$A$1:$CK$299,49,0)),0,VLOOKUP(DFES!$E$1,DATA!$A$1:$CK$299,49,0)) -> 507107.365
B42: 2023-11-01 | L42: =IF(ISNA(VLOOKUP(DFES!$E$1,DATA!$A$1:$CK$299,53,0)),0,VLOOKUP(DFES!$E$1,DATA!$A$1:$CK$299,53,0)) -> 507107.365
B43: 2023-12-01 | L43: =IF(ISNA(VLOOKUP(DFES!$E$1,DATA!$A$1:$CK$299,57,0)),0,VLOOKUP(DFES!$E$1,DATA!$A$1:$CK$299,57,0)) -> 507107.365
B44: 2024-01-01 | L44: =IF(ISNA(VLOOKUP(DFES!$E$1,DATA!$A$1:$CK$299,61,0)),0,VLOOKUP(DFES!$E$1,DATA!$A$1:$CK$299,61,0)) -> 507107.365
B45: 2024-02-01 | L45: =IF(ISNA(VLOOKUP(DFES!$E$1,DATA!$A$1:$CK$299,65,0)),0,VLOOKUP(DFES!$E$1,DATA!$A$1:$CK$299,65,0)) -> 507107.365
B46: 2024-03-01 | L46: =IF(ISNA(VLOOKUP(DFES!$E$1,DATA!$A$1:$CK$299,69,0)),0,VLOOKUP(DFES!$E$1,DATA!$A$1:$CK$299,69,0)) -> 507107.365
B48: Total | L48: =SUM(L34:L47) -> 6085288.38

Sheet DATA (hidden)
A3: 2023/24 FULL CHEQUE BOOK SCHOOLS EQUAL INSTALMENTS | H3: Addition | I3: Addition | J3: Addition | K3: Addition | L3: Addition | M3: Addition | N3: Addition | O3: Deduction | P3: Addition/Deduction before Top Slice 0.0132% | Q3: Deduction | R3: After all deductions
A4: 1 | B4: 2 | C4: 3 | D4: 4 | E4: 5 | F4: 6 | G4: 7 | H4: 8 | I4: 9 | J4: 10 | K4: 11 | L4: 12 | M4: 13 | N4: 14 | O4: 15 | P4: 16 | Q4: 17 | R4: 18 | S4: 19 | T4: 20 | U4: 21 | V4: 22 | W4: 23 | X4: 24 | Y4: 25 | Z4: 26 | AA4: 27 | AB4: 28 | AC4: 29 | AD4: 30 | AE4: 31 | AF4: 32 | AG4: 33 | AH4: 34 | AI4: 35 | AJ4: 36 | AK4: 37 | AL4: 38 | AM4: 39 | AN4: 40 | AO4: 41 | AP4: 42 | AQ4: 43 | AR4: 44 | AS4: 45 | AT4: 46 | AU4: 47 | AV4: 48 | AW4: 49 | AX4: 50 | AY4: 51 | AZ4: 52 | BA4: 53 | BB4: 54 | BC4: 55 | BD4: 56 | BE4: 57 | BF4: 58 | BG4: 59 | BH4: 60 | BI4: 61 | BJ4: 62 | BK4: 63 | BL4: 64 | BM4: 65 | BN4: 66 | BO4: 67 | BP4: 68 | BQ4: 69 | BR4: 70 | BS4: 71 | BT4: 72 | BU4: 73 | BV4: 74 | BW4: 75 | BX4: 76 | BY4: 77 | BZ4: 78 | CA4: 79
A5: DFE Num | B5: Oracle | C5: Fund Centre | D5: School | E5: Vendor Number | F5: Statistical Order | G5: Total SBS from APT 23-24 | H5: High Needs Place Funding | I5: High Needs Resource Base Funding | J5: Teachers Pay / Pension | K5: Early Years Funding | L5: Post 16 Funding Apr - Jul | M5: Post 16 Funding Aug - Mar | N5: Devolved Top Up (Special Only) | O5: Insurance Deductions | P5: Revised SBS (G+H+I+J+K+L+M+N) | Q5: Top Slice 0.0132% | R5: Revised SBS Less Top Slice (L-M) To Pay per Annum | U5: Duplicated Supplementary Grant | W5: April Instalment | X5: April Adjustment | Y5: Actual April Payment | AA5: May Instalment | AB5: May Adjustment | AC5: Actual May Payment | AE5: June Instalment | AF5: June Adjustment | AG5: Actual June Payment | AI5: July Instalment | AJ5: July Adjustment | AK5: Actual July Payment | AM5: August Instalment | AN5: August Adjustment | AO5: Actual August Payment | AQ5: September Instalment | AR5: September Adjustment- | AS5: Actual September Payment | AU5: October Instalment | AV5: October Adjustment | AW5: Actual October Payment | AY5: November Instalment | AZ5: November Adjustment | BA5: Actual November Payment | BC5: December Instalment | BD5: December Adjustment | BE5: Actual December Payment | BG5: January Instalment | BH5: January Adjustment | BI5: Actual January Payment | BK5: February Instalment | BL5: February Adjustment | BM5: Actual February Payment | BO5: March Instalment | BP5: March Adjustment | BQ5: Actual March Payment | BS5: Total Instalments | BT5: Total Adjustments | BU5: Total Actual Payments Made To Sch | BV5: Check | BW5: Comments | BX5: Check:
A6: 2010 | B6: AX085 | D6: Adderley Primary School | G6: 2415887.025 | I6: 0 | K6: 0 | O6: -10880 | P6: 2405007.025 | Q6: -317.4609273 | R6: 2404689.564 | U6: -43422 | Y6: 156968.797 | AC6: 200390.797 | AG6: 200390.797 | AK6: 200390.797 | AO6: 200390.797 | AS6: 200390.797 | AW6: 200390.797 | BA6: 200390.797 | BE6: 200390.797 | BI6: 200390.797 | BM6: 200390.797 | BQ6: 200390.797 | BS6: 2404689.564
A7: 1017 | B7: AX087 | D7: Allens Croft Childrens Centre | G7: 0 | I7: 36000 | K7: 848428.9942 | O7: -2850 | P7: 881578.9942 | Q7: -116.3684272 | R7: 881462.6257 | U7: -2079 | Y7: 71376.21881 | AC7: 73455.21881 | AG7: 73455.21881 | AK7: 73455.21881 | AO7: 73455.21881 | AS7: 73455.21881 | AW7: 73455.21881 | BA7: 73455.21881 | BE7: 73455.21881 | BI7: 73455.21881 | BM7: 73455.21881 | BQ7: 73455.21881 | BS7: 881462.6257
A8: 5413 | B8: AX08C | D8: Bishop Challoner Catholic College | G8: 6257798.037 | I8: 0 | K8: 0 | L8: 446121.3333 | M8: 892242.6667 | O8: 0 | P8: 7596162.037 | Q8: -1002.693389 | R8: 7595159.344 | U8: -112836 | Y8: 520093.9453 | AC8: 632929.9453 | AG8: 632929.9453 | AK8: 632929.9453 | AO8: 632929.9453 | AS8: 632929.9453 | AW8: 632929.9453 | BA8: 632929.9453 | BE8: 632929.9453 | BI8: 632929.9453 | BM8: 632929.9453 | BQ8: 632929.9453 | BS8: 7595159.344
A9: 2254 | B9: AX00Q | D9: Blakesley Hall Primary School | G9: 2905035.22 | I9: 0 | K9: 0 | O9: -16230 | P9: 2888805.22 | Q9: -381.322289 | R9: 2888423.897 | U9: -48210 | Y9: 0 | AC9: 240701.9914 | AG9: 240701.9914 | AK9: 240701.9914 | AO9: 240701.9914 | AS9: 240701.9914 | AW9: 240701.9914 | BA9: 240701.9914 | BE9: 240701.9914 | BI9: 240701.9914 | BM9: 240701.9914 | BQ9: 240701.9914 | BS9: 2695931.906
A10: 2402 | B10: AX08G | D10: Boldmere Infant & Nursery School | G10: 1251450.001 | I10: 136000 | K10: 119862.0288 | O10: -4450 | P10: 1502862.03 | Q10: -198.377788 | R10: 1502663.652 | U10: -20231 | Y10: 104990.971 | AC10: 125221.971 | AG10: 125221.971 | AK10: 125221.971 | AO10: 125221.971 | AS10: 125221.971 | AW10: 125221.971 | BA10: 125221.971 | BE10: 125221.971 | BI10: 125221.971 | BM10: 125221.971 | BQ10: 125221.971 | BS10: 1502663.652
A11: 2401 | B11: AX00T | D11: Boldmere Junior School | G11: 1664650.8 | I11: 0 | K11: 0 | O11: -8200 | P11: 1656450.8 | Q11: -218.6515056 | R11: 1656232.148 | U11: -25833 | Y11: 112186.3457 | AC11: 138019.3457 | AG11: 138019.3457 | AK11: 138019.3457 | AO11: 138019.3457 | AS11: 138019.3457 | AW11: 138019.3457 | BA11: 138019.3457 | BE11: 138019.3457 | BI11: 138019.3457 | BM11: 138019.3457 | BQ11: 138019.3457 | BS11: 1656232.148
A12: 4115 | B12: AX08J | D12: Bordesley Green Girls School | G12: 4682933.784 | I12: 76000 | K12: 0 | L12: 707197.6667 | M12: 1414395.333 | O12: -16230 | P12: 6864296.784 | Q12: -906.0871755 | R12: 6863390.697 | U12: -85474 | Y12: 486475.2248 | AC12: 571949.2248 | AG12: 571949.2248 | AK12: 571949.2248 | AO12: 571949.2248 | AS12: 571949.2248 | AW12: 571949.2248 | BA12: 571949.2248 | BE12: 571949.2248 | BI12: 571949.2248 | BM12: 571949.2248 | BQ12: 571949.2248 | BS12: 6863390.697
A13: 2030 | B13: AX08H | D13: Bordesley Green Primary School | G13: 3215725.603 | I13: 0 | K13: 139816.6588 | O13: -16230 | P13: 3339312.262 | Q13: -440.7892185 | R13: 3338871.472 | U13: -50630 | Y13: 227609.2894 | AC13: 278239.2894 | AG13: 278239.2894 | AK13: 278239.2894 | AO13: 278239.2894 | AS13: 278239.2894 | AW13: 278239.2894 | BA13: 278239.2894 | BE13: 278239.2894 | BI13: 278239.2894 | BM13: 278239.2894 | BQ13: 278239.2894 | BS13: 3338871.472
A14: 2238 | B14: AX08N | D14: Broadmeadow Infant & Nursery School | G14: 886003.2088 | I14: 0 | K14: 110949.25 | O14: -4450 | P14: 992502.4588 | Q14: -131.0103246 | R14: 992371.4485 | U14: -15334 | Y14: 67363.62071 | AC14: 82697.62071 | AG14: 82697.62071 | AK14: 82697.62071 | AO14: 82697.62071 | AS14: 82697.62071 | AW14: 82697.62071 | BA14: 82697.62071 | BE14: 82697.62071 | BI14: 82697.62071 | BM14: 82697.62071 | BQ14: 82697.62071 | BS14: 992371.4485
A15: 2236 | B15: AX010 | D15: Broadmeadow Junior School | G15: 1182182.652 | I15: 0 | K15: 0 | O15: -4450 | P15: 1177732.652 | Q15: -155.46071 | R15: 1177577.191 | U15: -21020 | Y15: 77111.43257 | AC15: 98131.43257 | AG15: 98131.43257 | AK15: 98131.43257 | AO15: 98131.43257 | AS15: 98131.43257 | AW15: 98131.43257 | BA15: 98131.43257 | BE15: 98131.43257 | BI15: 98131.43257 | BM15: 98131.43257 | BQ15: 98131.43257 | BS15: 1177577.191
A16: 4801 | B16: AX08U | D16: Cardinal Wiseman Catholic Technology College | G16: 5416565.215 | I16: 0 | K16: 0 | O16: -16230 | P16: 5400335.215 | Q16: -712.8442483 | R16: 5399622.37 | U16: -91449 | Y16: 358519.5309 | AC16: 449968.5309 | AG16: 449968.5309 | AK16: 449968.5309 | AO16: 449968.5309 | AS16: 449968.5309 | AW16: 449968.5309 | BA16: 449968.5309 | BE16: 449968.5309 | BI16: 449968.5309 | BM16: 449968.5309 | BQ16: 449968.5309 | BS16: 5399622.37
A17: 2312 | B17: AX015 | D17: Chad Vale Primary School | G17: 1915891.397 | I17: 0 | K17: 0 | O17: -8200 | P17: 1907691.397 | Q17: -251.8152644 | R17: 1907439.582 | U17: -28935 | Y17: 130018.2985 | AC17: 158953.2985 | AG17: 158953.2985 | AK17: 158953.2985 | AO17: 158953.2985 | AS17: 158953.2985 | AW17: 158953.2985 | BA17: 158953.2985 | BE17: 158953.2985 | BI17: 158953.2985 | BM17: 158953.2985 | BQ17: 158953.2985 | BS17: 1907439.582
A18: 7051 | B18: AX017 | D18: Cherry Oak School | G18: 0 | H18: 1110000 | I18: 0 | J18: 84360 | K18: 1833 | N18: 1120607 | O18: -2850 | P18: 2313950 | Q18: -305.4414 | R18: 2313644.559 | U18: 0 | Y18: 192803.7132 | AC18: 192803.7132 | AG18: 192803.7132 | AK18: 192803.7132 | AO18: 192803.7132 | AS18: 192803.7132 | AW18: 192803.7132 | BA18: 192803.7132 | BE18: 192803.7132 | BI18: 192803.7132 | BM18: 192803.7132 | BQ18: 192803.7132 | BS18: 2313644.559
A19: 2251 | B19: AX08W | D19: Chilcote Primary School | G19: 1840758.794 | I19: 0 | K19: 111614.2 | O19: -8200 | P19: 1944172.994 | Q19: -256.6308351 | R19: 1943916.363 | U19: -29863 | Y19: 132130.0302 | AC19: 161993.0302 | AG19: 161993.0302 | AK19: 161993.0302 | AO19: 161993.0302 | AS19: 161993.0302 | AW19: 161993.0302 | BA19: 161993.0302 | BE19: 161993.0302 | BI19: 161993.0302 | BM19: 161993.0302 | BQ19: 161993.0302 | BS19: 1943916.363
A20: 3002 | B20: AX01A | D20: Christ Church CE Primary School | G20: 1209196.985 | I20: 0 | K20: 73644.17846 | O20: -4450 | P20: 1278391.164 | Q20: -168.7476336 | R20: 1278222.416 | U20: -18736 | Y20: 87782.53466 | AC20: 106518.5347 | AG20: 106518.5347 | AK20: 106518.5347 | AO20: 106518.5347 | AS20: 106518.5347 | AW20: 106518.5347 | BA20: 106518.5347 | BE20: 106518.5347 | BI20: 106518.5347 | BM20: 106518.5347 | BQ20: 106518.5347 | BS20: 1278222.416
A21: 3319 | B21: AX019 | D21: Christ The King Catholic Primary School | G21: 1871766.772 | I21: 2500 | K21: 137158.28 | O21: -8200 | P21: 2003225.052 | Q21: -264.4257068 | R21: 2002960.626 | U21: -31919 | Y21: 134994.3855 | AC21: 166913.3855 | AG21: 166913.3855 | AK21: 166913.3855 | AO21: 166913.3855 | AS21: 166913.3855 | AW21: 166913.3855 | BA21: 166913.3855 | BE21: 166913.3855 | BI21: 166913.3855 | BM21: 166913.3855 | BQ21: 166913.3855 | BS21: 2002960.626
A22: 5416 | B22: AX091 | D22: Colmers School and Sixth Form College | G22: 8338718.382 | I22: 0 | K22: 0 | L22: 143659 | M22: 287318 | O22: -26050 | P22: 8743645.382 | Q22: -1154.16119 | R22: 8742491.221 | U22: -140733 | Y22: 587807.935 | AC22: 728540.935 | AG22: 728540.935 | AK22: 728540.935 | AO22: 728540.935 | AS22: 728540.935 | AW22: 728540.935 | BA22: 728540.935 | BE22: 728540.935 | BI22: 728540.935 | BM22: 728540.935 | BQ22: 728540.935 | BS22: 8742491.221
A23: 2054 | B23: AX092 | D23: Colmore Infant School | G23: 1657104.699 | I23: 0 | K23: 142862.7 | O23: -8200 | P23: 1791767.399 | Q23: -236.5132966 | R23: 1791530.886 | U23: -26792 | Y23: 122502.2405 | AC23: 149294.2405 | AG23: 149294.2405 | AK23: 149294.2405 | AO23: 149294.2405 | AS23: 149294.2405 | AW23: 149294.2405 | BA23: 149294.2405 | BE23: 149294.2405 | BI23: 149294.2405 | BM23: 149294.2405 | BQ23: 149294.2405 | BS23: 1791530.886
A24: 2053 | B24: AX093 | D24: Colmore Junior School | G24: 2129128.682 | I24: 0 | K24: 0 | O24: -10880 | P24: 2118248.682 | Q24: -279.6088261 | R24: 2117969.074 | U24: -35377 | Y24: 141120.4228 | AC24: 176497.4228 | AG24: 176497.4228 | AK24: 176497.4228 | AO24: 176497.4228 | AS24: 176497.4228 | AW24: 176497.4228 | BA24: 176497.4228 | BE24: 176497.4228 | BI24: 176497.4228 | BM24: 176497.4228 | BQ24: 176497.4228 | BS24: 2117969.074
A25: 2296 | B25: AX027 | D25: Glenmead Primary School | G25: 1431285.591 | I25: 0 | K25: 0 | O25: -8200 | P25: 1423085.591 | Q25: -187.8472981 | R25: 1422897.744 | U25: -26179 | Y25: 92395.812 | AC25: 118574.812 | AG25: 118574.812 | AK25: 118574.812 | AO25: 118574.812 | AS25: 118574.812 | AW25: 118574.812 | BA25: 118574.812 | BE25: 118574.812 | BI25: 118574.812 | BM25: 118574.812 | BQ25: 118574.812 | BS25: 1422897.744
A26: 2092 | B26: AX02H | D26: Hall Green Junior School | G26: 2148556.521 | I26: 0 | K26: 0 | O26: -10227 | P26: 2138329.521 | Q26: -282.2594968 | R26: 2138047.262 | U26: -36919 | Y26: 141251.6052 | AC26: 178170.6052 | AG26: 178170.6052 | AK26: 178170.6052 | AO26: 178170.6052 | AS26: 178170.6052 | AW26: 178170.6052 | BA26: 178170.6052 | BE26: 178170.6052 | BI26: 178170.6052 | BM26: 178170.6052 | BQ26: 178170.6052 | BS26: 2138047.262
A27: 4015 | B27: AX0A2 | D27: Hodge Hill Girls School | G27: 4984126.03 | I27: 0 | K27: 0 | O27: 0 | P27: 4984126.03 | Q27: -657.9046359 | R27: 4983468.125 | U27: -89587 | Y27: 325702.0104 | AC27: 415289.0104 | AG27: 415289.0104 | AK27: 415289.0104 | AO27: 415289.0104 | AS27: 415289.0104 | AW27: 415289.0104 | BA27: 415289.0104 | BE27: 415289.0104 | BI27: 415289.0104 | BM27: 415289.0104 | BQ27: 415289.0104 | BS27: 4983468.125
A28: 4201 | B28: AX0A1 | D28: Hodge Hill School | G28: 8376273.433 | I28: 0 | K28: 0 | O28: -26410 | P28: 8349863.433 | Q28: -1102.181973 | R28: 8348761.251 | U28: -146417 | Y28: 549313.1042 | AC28: 695730.1042 | AG28: 695730.1042 | AK28: 695730.1042 | AO28: 695730.1042 | AS28: 695730.1042 | AW28: 695730.1042 | BA28: 695730.1042 | BE28: 695730.1042 | BI28: 695730.1042 | BM28: 695730.1042 | BQ28: 695730.1042 | BS28: 8348761.251
A29: 4223 | B29: AX0A4 | D29: Holte School | G29: 7511789.793 | I29: 0 | K29: 0 | L29: 335062 | M29: 670124 | O29: 0 | P29: 8516975.793 | Q29: -1124.240805 | R29: 8515851.552 | U29: -142312 | Y29: 567342.296 | AC29: 709654.296 | AG29: 709654.296 | AK29: 709654.296 | AO29: 709654.296 | AS29: 709654.296 | AW29: 709654.296 | BA29: 709654.296 | BE29: 709654.296 | BI29: 709654.296 | BM29: 709654.296 | BQ29: 709654.296 | BS29: 8515851.552
A30: 2015 | B30: AX032 | D30: James Watt Primary School | G30: 2229772.749 | I30: 0 | K30: 153795.0219 | O30: -8200 | P30: 2375367.771 | Q30: -313.5485458 | R30: 2375054.223 | U30: -34991 | Y30: 162930.1852 | AC30: 197921.1852 | AG30: 197921.1852 | AK30: 197921.1852 | AO30: 197921.1852 | AS30: 197921.1852 | AW30: 197921.1852 | BA30: 197921.1852 | BE30: 197921.1852 | BI30: 197921.1852 | BM30: 197921.1852 | BQ30: 197921.1852 | BS30: 2375054.223
A31: 2462 | B31: AX03L | D31: Little Sutton Primary School | G31: 1848638.52 | I31: 0 | K31: 0 | O31: -8200 | P31: 1840438.52 | Q31: -242.9378846 | R31: 1840195.582 | U31: -27414 | Y31: 125935.6318 | AC31: 153349.6318 | AG31: 153349.6318 | AK31: 153349.6318 | AO31: 153349.6318 | AS31: 153349.6318 | AW31: 153349.6318 | BA31: 153349.6318 | BE31: 153349.6318 | BI31: 153349.6318 | BM31: 153349.6318 | BQ31: 153349.6318 | BS31: 1840195.582
A32: 2127 | B32: AX0AN | D32: Lozells J & I School | G32: 2259780.783 | I32: 0 | K32: 133835.175 | O32: 0 | P32: 2393615.958 | Q32: -315.9573064 | R32: 2393300.001 | U32: -38104 | Y32: 161337.6667 | AC32: 199441.6667 | AG32: 199441.6667 | AK32: 199441.6667 | AO32: 199441.6667 | AS32: 199441.6667 | AW32: 199441.6667 | BA32: 199441.6667 | BE32: 199441.6667 | BI32: 199441.6667 | BM32: 199441.6667 | BQ32: 199441.6667 | BS32: 2393300.001
A33: 2129 | B33: AX03N | D33: Lyndon Green Infant School | G33: 1347520.395 | I33: 76000 | K33: 0 | O33: -5943 | P33: 1417577.395 | Q33: -187.1202162 | R33: 1417390.275 | U33: -21754 | Y33: 96361.85626 | AC33: 118115.8563 | AG33: 118115.8563 | AK33: 118115.8563 | AO33: 118115.8563 | AS33: 118115.8563 | AW33: 118115.8563 | BA33: 118115.8563 | BE33: 118115.8563 | BI33: 118115.8563 | BM33: 118115.8563 | BQ33: 118115.8563 | BS33: 1417390.275
A34: 2128 | B34: AX03P | D34: Lyndon Green Junior School | G34: 1679959.968 | I34: 72000 | K34: 0 | O34: -8200 | P34: 1743759.968 | Q34: -230.1763158 | R34: 1743529.792 | U34: -28243 | Y34: 117051.1493 | AC34: 145294.1493 | AG34: 145294.1493 | AK34: 145294.1493 | AO34: 145294.1493 | AS34: 145294.1493 | AW34: 145294.1493 | BA34: 145294.1493 | BE34: 145294.1493 | BI34: 145294.1493 | BM34: 145294.1493 | BQ34: 145294.1493 | BS34: 1743529.792
A35: 2133 | B35: AX03V | D35: Marsh Hill Primary School | G35: 2347298.245 | I35: 0 | K35: 0 | O35: -8200 | P35: 2339098.245 | Q35: -308.7609684 | R35: 2338789.484 | U35: -34600 | Y35: 160299.1237 | AC35: 194899.1237 | AG35: 194899.1237 | AK35: 194899.1237 | AO35: 194899.1237 | AS35: 194899.1237 | AW35: 194899.1237 | BA35: 194899.1237 | BE35: 194899.1237 | BI35: 194899.1237 | BM35: 194899.1237 | BQ35: 194899.1237 | BS35: 2338789.484
A36: 3322 | B36: AX03X | D36: Maryvale Catholic Primary School | G36: 1064449.25 | I36: 0 | K36: 77682.175 | O36: -4450 | P36: 1137681.425 | Q36: -150.1739482 | R36: 1137531.252 | U36: -17706 | Y36: 77088.27096 | AC36: 94794.27096 | AG36: 94794.27096 | AK36: 94794.27096 | AO36: 94794.27096 | AS36: 94794.27096 | AW36: 94794.27096 | BA36: 94794.27096 | BE36: 94794.27096 | BI36: 94794.27096 | BM36: 94794.27096 | BQ36: 94794.27096 | BS36: 1137531.252
A37: 4245 | B37: AX0AW | D37: Moseley School | G37: 9076642.98 | I37: 0 | K37: 0 | L37: 467097 | M37: 934194 | O37: -30681 | P37: 10447252.98 | Q37: -1379.037393 | R37: 10445873.94 | U37: -162777.71 | Y37: 707711.7852 | AC37: 870489.4952 | AG37: 870489.4952 | AK37: 870489.4952 | AO37: 870489.4952 | AS37: 870489.4952 | AW37: 870489.4952 | BA37: 870489.4952 | BE37: 870489.4952 | BI37: 870489.4952 | BM37: 870489.4952 | BQ37: 870489.4952 | BS37: 10445873.94
A38: 3323 | B38: AX049 | D38: Oratory R C Primary School | G38: 1089833.751 | I38: 0 | K38: 67410.45833 | O38: 0 | P38: 1157244.209 | Q38: -152.7562356 | R38: 1157091.453 | U38: -18445 | Y38: 77979.28775 | AC38: 96424.28775 | AG38: 96424.28775 | AK38: 96424.28775 | AO38: 96424.28775 | AS38: 96424.28775 | AW38: 96424.28775 | BA38: 96424.28775 | BE38: 96424.28775 | BI38: 96424.28775 | BM38: 96424.28775 | BQ38: 96424.28775 | BS38: 1157091.453
A39: 4173 | B39: AX0BD | D39: Queensbridge School | G39: 6107141.744 | I39: 0 | K39: 0 | O39: -21050 | P39: 6086091.744 | Q39: -803.3641102 | R39: 6085288.38 | U39: -97253 | Y39: 409854.365 | AC39: 507107.365 | AG39: 507107.365 | AK39: 507107.365 | AO39: 507107.365 | AS39: 507107.365 | AW39: 507107.365 | BA39: 507107.365 | BE39: 507107.365 | BI39: 507107.365 | BM39: 507107.365 | BQ39: 507107.365 | BS39: 6085288.38
A40: 7033 | B40: AX0BK | D40: Selly Oak Trust School | G40: 0 | H40: 3950000 | I40: 0 | J40: 300200 | K40: 0 | N40: 1698428 | O40: -8200 | P40: 5940428 | Q40: -784.136496 | R40: 5939643.864 | U40: 0 | Y40: 494970.322 | AC40: 494970.322 | AG40: 494970.322 | AK40: 494970.322 | AO40: 494970.322 | AS40: 494970.322 | AW40: 494970.322 | BA40: 494970.322 | BE40: 494970.322 | BI40: 494970.322 | BM40: 494970.322 | BQ40: 494970.322 | BS40: 5939643.864
A41: 4177 | B41: AX0BL | D41: Selly Park Tech College For Girls | G41: 5588911.632 | I41: 0 | K41: 0 | O41: -16230 | P41: 5572681.632 | Q41: -735.5939754 | R41: 5571946.038 | U41: -95509 | Y41: 368819.8365 | AC41: 464328.8365 | AG41: 464328.8365 | AK41: 464328.8365 | AO41: 464328.8365 | AS41: 464328.8365 | AW41: 464328.8365 | BA41: 464328.8365 | BE41: 464328.8365 | BI41: 464328.8365 | BM41: 464328.8365 | BQ41: 464328.8365 | BS41: 5571946.038
A42: 1038 | B42: AX056 | D42: Shenleyfields Nursery School | G42: 0 | I42: 0 | K42: 749819.1239 | O42: -2850 | P42: 746969.1239 | Q42: -98.59992436 | R42: 746870.524 | U42: -1896 | Y42: 60343.21033 | AC42: 62239.21033 | AG42: 62239.21033 | AK42: 62239.21033 | AO42: 62239.21033 | AS42: 62239.21033 | AW42: 62239.21033 | BA42: 62239.21033 | BE42: 62239.21033 | BI42: 62239.21033 | BM42: 62239.21033 | BQ42: 62239.21033 | BS42: 746870.524
A43: 2174 | B43: AX0BR | D43: Sladefield Infants School | G43: 1791532.269 | I43: 0 | K43: 0 | O43: -7560 | P43: 1783972.269 | Q43: -235.4843395 | R43: 1783736.785 | U43: -28613 | Y43: 120031.7321 | AC43: 148644.7321 | AG43: 148644.7321 | AK43: 148644.7321 | AO43: 148644.7321 | AS43: 148644.7321 | AW43: 148644.7321 | BA43: 148644.7321 | BE43: 148644.7321 | BI43: 148644.7321 | BM43: 148644.7321 | BQ43: 148644.7321 | BS43: 1783736.785
A44: 3363 | B44: AX05Q | D44: St Dunstans Primary School | G44: 1671140.685 | I44: 0 | K44: 82114.88462 | O44: -8200 | P44: 1745055.57 | Q44: -230.3473352 | R44: 1744825.223 | U44: -29632 | Y44: 115770.1019 | AC44: 145402.1019 | AG44: 145402.1019 | AK44: 145402.1019 | AO44: 145402.1019 | AS44: 145402.1019 | AW44: 145402.1019 | BA44: 145402.1019 | BE44: 145402.1019 | BI44: 145402.1019 | BM44: 145402.1019 | BQ44: 145402.1019 | BS44: 1744825.223
A45: 3377 | B45: AX066 | D45: St Jude's Catholic Primary School | G45: 1103199.007 | I45: 0 | K45: 47448 | O45: 0 | P45: 1150647.007 | Q45: -151.885405 | R45: 1150495.122 | U45: -19109 | Y45: 76765.59349 | AC45: 95874.59349 | AG45: 95874.59349 | AK45: 95874.59349 | AO45: 95874.59349 | AS45: 95874.59349 | AW45: 95874.59349 | BA45: 95874.59349 | BE45: 95874.59349 | BI45: 95874.59349 | BM45: 95874.59349 | BQ45: 95874.59349 | BS45: 1150495.122
A46: 3371 | B46: AX067 | D46: St Laurence Church Infant School | G46: 1305315.547 | I46: 0 | K46: 0 | O46: -4450 | P46: 1300865.547 | Q46: -171.7142523 | R46: 1300693.833 | U46: -19957 | Y46: 88434.15277 | AC46: 108391.1528 | AG46: 108391.1528 | AK46: 108391.1528 | AO46: 108391.1528 | AS46: 108391.1528 | AW46: 108391.1528 | BA46: 108391.1528 | BE46: 108391.1528 | BI46: 108391.1528 | BM46: 108391.1528 | BQ46: 108391.1528 | BS46: 1300693.833
A47: 3016 | B47: AX06F | D47: St Matthew's CE Primary School | G47: 1262274.462 | I47: 0 | K47: 0 | O47: -4450 | P47: 1257824.462 | Q47: -166.032829 | R47: 1257658.43 | U47: -19621 | Y47: 85183.86913 | AC47: 104804.8691 | AG47: 104804.8691 | AK47: 104804.8691 | AO47: 104804.8691 | AS47: 104804.8691 | AW47: 104804.8691 | BA47: 104804.8691 | BE47: 104804.8691 | BI47: 104804.8691 | BM47: 104804.8691 | BQ47: 104804.8691 | BS47: 1257658.43
A48: 4606 | B48: AX0C4 | D48: St Pauls Girls School | G48: 5228436.588 | I48: 0 | K48: 0 | L48: 377231.3333 | M48: 754462.6667 | O48: -21050 | P48: 6339080.588 | Q48: -836.7586376 | R48: 6338243.829 | U48: -93123 | Y48: 435063.9858 | AC48: 528186.9858 | AG48: 528186.9858 | AK48: 528186.9858 | AO48: 528186.9858 | AS48: 528186.9858 | AW48: 528186.9858 | BA48: 528186.9858 | BE48: 528186.9858 | BI48: 528186.9858 | BM48: 528186.9858 | BQ48: 528186.9858 | BS48: 6338243.829
A49: 3428 | B49: AX06L | D49: St Peters CE Primary School | G49: 1873626.788 | I49: 0 | K49: 129687.2081 | O49: -8200 | P49: 1995113.996 | Q49: -263.3550474 | R49: 1994850.641 | U49: -30216 | Y49: 136021.5534 | AC49: 166237.5534 | AG49: 166237.5534 | AK49: 166237.5534 | AO49: 166237.5534 | AS49: 166237.5534 | AW49: 166237.5534 | BA49: 166237.5534 | BE49: 166237.5534 | BI49: 166237.5534 | BM49: 166237.5534 | BQ49: 166237.5534 | BS49: 1994850.641
A50: 4237 | B50: AX0C8 | D50: Swanshurst | G50: 10311539.31 | I50: 0 | K50: 0 | L50: 567911.3333 | M50: 1135822.667 | O50: -39800 | P50: 11975473.31 | Q50: -1580.762477 | R50: 11973892.55 | U50: -189519.77 | Y50: 808304.6088 | AC50: 997824.3788 | AG50: 997824.3788 | AK50: 997824.3788 | AO50: 997824.3788 | AS50: 997824.3788 | AW50: 997824.3788 | BA50: 997824.3788 | BE50: 997824.3788 | BI50: 997824.3788 | BM50: 997824.3788 | BQ50: 997824.3788 | BS50: 11973892.55
A51: 7014 | B51: AX07A | D51: Uffculme School | G51: 0 | H51: 2660000 | I51: 0 | J51: 202160 | K51: 2378 | N51: 2989691 | O51: -5040 | P51: 5849189 | Q51: -772.092948 | R51: 5848416.907 | U51: 0 | Y51: 487368.0756 | AC51: 487368.0756 | AG51: 487368.0756 | AK51: 487368.0756 | AO51: 487368.0756 | AS51: 487368.0756 | AW51: 487368.0756 | BA51: 487368.0756 | BE51: 487368.0756 | BI51: 487368.0756 | BM51: 487368.0756 | BQ51: 487368.0756 | BS51: 5848416.907
A52: 7009 | B52: AX0CG | D52: Victoria School | G52: 0 | H52: 2280000 | I52: 0 | J52: 173280 | K52: 11877.05 | N52: 2856728 | O52: -4450 | P52: 5317435.05 | Q52: -701.9014266 | R52: 5316733.149 | U52: 0 | Y52: 443061.0957 | AC52: 443061.0957 | AG52: 443061.0957 | AK52: 443061.0957 | AO52: 443061.0957 | AS52: 443061.0957 | AW52: 443061.0957 | BA52: 443061.0957 | BE52: 443061.0957 | BI52: 443061.0957 | BM52: 443061.0957 | BQ52: 443061.0957 | BS52: 5316733.149
A53: 5203 | B53: AX0CH | D53: Walmley Infant School | G53: 1212855.791 | I53: 0 | K53: 246561.1 | O53: -4450 | P53: 1454966.891 | Q53: -192.0556296 | R53: 1454774.835 | U53: -19259 | Y53: 101972.2363 | AC53: 121231.2363 | AG53: 121231.2363 | AK53: 121231.2363 | AO53: 121231.2363 | AS53: 121231.2363 | AW53: 121231.2363 | BA53: 121231.2363 | BE53: 121231.2363 | BI53: 121231.2363 | BM53: 121231.2363 | BQ53: 121231.2363 | BS53: 1454774.835
A54: 5202 | B54: AX0CJ | D54: Walmley Junior School | G54: 1577037.6 | I54: 0 | K54: 0 | O54: 0 | P54: 1577037.6 | Q54: -208.1689632 | R54: 1576829.431 | U54: -24341 | Y54: 107061.4526 | AC54: 131402.4526 | AG54: 131402.4526 | AK54: 131402.4526 | AO54: 131402.4526 | AS54: 131402.4526 | AW54: 131402.4526 | BA54: 131402.4526 | BE54: 131402.4526 | BI54: 131402.4526 | BM54: 131402.4526 | BQ54: 131402.4526 | BS54: 1576829.431
A55: 2308 | B55: AX0CL | D55: Welford School | G55: 2281863.859 | I55: 8500 | K55: 118456.5947 | O55: -8200 | P55: 2400620.453 | Q55: -316.8818998 | R55: 2400303.571 | U55: -37586 | Y55: 162439.2976 | AC55: 200025.2976 | AG55: 200025.2976 | AK55: 200025.2976 | AO55: 200025.2976 | AS55: 200025.2976 | AW55: 200025.2976 | BA55: 200025.2976 | BE55: 200025.2976 | BI55: 200025.2976 | BM55: 200025.2976 | BQ55: 200025.2976 | BS55: 2400303.571
A56: 2011 | B56: AX07P | D56: Wheelers Lane Primary School | G56: 2795705.428 | I56: 0 | K56: 112409.3 | O56: -16230 | P56: 2891884.728 | Q56: -381.728784 | R56: 2891502.999 | U56: -47114 | Y56: 193844.5832 | AC56: 240958.5832 | AG56: 240958.5832 | AK56: 240958.5832 | AO56: 240958.5832 | AS56: 240958.5832 | AW56: 240958.5832 | BA56: 240958.5832 | BE56: 240958.5832 | BI56: 240958.5832 | BM56: 240958.5832 | BQ56: 240958.5832 | BS56: 2891502.999
A57: 2293 | B57: AX07T | D57: William Murdoch Primary School | G57: 2999987.969 | I57: 0 | K57: 117691.0359 | O57: -16230 | P57: 3101449.005 | Q57: -409.3912686 | R57: 3101039.613 | U57: -49496 | Y57: 208923.9678 | AC57: 258419.9678 | AG57: 258419.9678 | AK57: 258419.9678 | AO57: 258419.9678 | AS57: 258419.9678 | AW57: 258419.9678 | BA57: 258419.9678 | BE57: 258419.9678 | BI57: 258419.9678 | BM57: 258419.9678 | BQ57: 258419.9678 | BS57: 3101039.613
A58: 2225 | B58: AX0CQ | D58: Worlds End Junior School | G58: 1812614.467 | I58: 56000 | K58: 0 | O58: -8200 | P58: 1860414.467 | Q58: -245.5747096 | R58: 1860168.892 | U58: -31293 | Y58: 123721.0743 | AC58: 155014.0743 | AG58: 155014.0743 | AK58: 155014.0743 | AO58: 155014.0743 | AS58: 155014.0743 | AW58: 155014.0743 | BA58: 155014.0743 | BE58: 155014.0743 | BI58: 155014.0743 | BM58: 155014.0743 | BQ58: 155014.0743 | BS58: 1860168.892
A59: 2412 | B59: AX07Y | D59: Wylde Green Primary School | G59: 1900428.164 | I59: 0 | K59: 0 | O59: -8200 | P59: 1892228.164 | Q59: -249.7741177 | R59: 1891978.39 | U59: -30158 | Y59: 127506.8658 | AC59: 157664.8658 | AG59: 157664.8658 | AK59: 157664.8658 | AO59: 157664.8658 | AS59: 157664.8658 | AW59: 157664.8658 | BA59: 157664.8658 | BE59: 157664.8658 | BI59: 157664.8658 | BM59: 157664.8658 | BQ59: 157664.8658 | BS59: 1891978.39
A60: 2486 | B60: AX01Z | D60: Forestdale Primary School | G60: 1222074.585 | K60: 60717 | P60: 1282791.585 | Q60: -169.3284892 | R60: 1282622.256 | U60: 0 | Y60: 106885.188 | AC60: 106885.188 | AG60: 106885.188 | AK60: 106885.188 | AO60: 106885.188 | AS60: 106885.188 | AW60: 106885.188 | BA60: 106885.188 | BE60: 106885.188 | BI60: 106885.188 | BM60: 106885.188 | BQ60: 106885.188 | BS60: 1282622.256
A61: 2300 | B61: AX008 | D61: Arden Primary School | G61: 3203885.977 | K61: 211072 | P61: 3414957.977 | Q61: -450.774453 | R61: 3414507.202 | U61: 0 | Y61: 284542.2669 | AC61: 284542.2669 | AG61: 284542.2669 | AK61: 284542.2669 | AO61: 284542.2669 | AS61: 284542.2669 | AW61: 284542.2669 | BA61: 284542.2669 | BE61: 284542.2669 | BI61: 284542.2669 | BM61: 284542.2669 | BQ61: 284542.2669 | BS61: 3414507.202
A62: 4193 | B62: AX07N | D62: Wheelers Lane Secondary School | G62: 4450968.441 | P62: 4450968.441 | Q62: -587.5278342 | R62: 4450380.913 | U62: 0 | Y62: 370865.0761 | AC62: 370865.0761 | AG62: 370865.0761 | AK62: 370865.0761 | AO62: 370865.0761 | AS62: 370865.0761 | AW62: 370865.0761 | BA62: 370865.0761 | BE62: 370865.0761 | BI62: 370865.0761 | BM62: 370865.0761 | BQ62: 370865.0761 | BS62: 4450380.913 | BX62: -6054231.528
A63: 2055 | B63: AX01J | D63: Cotteridge Primary School | G63: 1987027.587 | K63: 106907 | P63: 2093934.587 | Q63: -276.3993655 | R63: 2093658.188 | U63: 0 | Y63: 174471.5157 | AC63: 174471.5157 | AG63: 174471.5157 | AK63: 174471.5157 | AO63: 174471.5157 | AS63: 174471.5157 | AW63: 174471.5157 | BA63: 174471.5157 | BE63: 174471.5157 | BI63: 174471.5157 | BM63: 174471.5157 | BQ63: 174471.5157 | BS63: 2093658.188
A64: 2416 | B64: AX041 | D64: Moor Hall Primary School | G64: 1653699.15 | P64: 1653699.15 | Q64: -218.2882878 | R64: 1653480.862 | U64: 0 | Y64: 137790.0718 | AC64: 137790.0718 | AG64: 137790.0718 | AK64: 137790.0718 | AO64: 137790.0718 | AS64: 137790.0718 | AW64: 137790.0718 | BA64: 137790.0718 | BE64: 137790.0718 | BI64: 137790.0718 | BM64: 137790.0718 | BQ64: 137790.0718 | BS64: 1653480.862
A65: 7016 | B65: AX00E | D65: Baskerville School | G65: 0 | H65: 1880000 | I65: 0 | J65: 142880 | K65: 0 | N65: 3473236 | P65: 5496116 | Q65: -725.487312 | R65: 5495390.513 | U65: 0 | Y65: 457949.2094 | AC65: 457949.2094 | AG65: 457949.2094 | AK65: 457949.2094 | AO65: 457949.2094 | AS65: 457949.2094 | AW65: 457949.2094 | BA65: 457949.2094 | BE65: 457949.2094 | BI65: 457949.2094 | BM65: 457949.2094 | BQ65: 457949.2094 | BS65: 5495390.513
A66: 7053 | B66: AX04C | D66: Oscott Manor School | G66: 0 | H66: 1800000 | I66: 0 | J66: 136800 | K66: 0 | N66: 1537830 | P66: 3474630 | Q66: -458.65116 | R66: 3474171.349 | U66: 0 | Y66: 289514.2791 | AC66: 289514.2791 | AG66: 289514.2791 | AK66: 289514.2791 | AO66: 289514.2791 | AS66: 289514.2791 | AW66: 289514.2791 | BA66: 289514.2791 | BE66: 289514.2791 | BI66: 289514.2791 | BM66: 289514.2791 | BQ66: 289514.2791 | BS66: 3474171.349
A74: 1 | B74: 2 | C74: 3 | D74: 4 | E74: 5 | F74: 6 | G74: 7 | J74: 8 | K74: 9 | L74: 10 | O74: 11 | P74: 12 | Q74: 13 | R74: 14 | S74: 15 | T74: 16 | U74: 17 | V74: 18 | W74: 19 | X74: 20 | Y74: 21 | Z74: 22 | AA74: 23 | AB74: 24 | AC74: 25 | AD74: 26 | AE74: 27 | AF74: 28 | AG74: 29 | AH74: 30 | AI74: 31 | AJ74: 32 | AK74: 33 | AL74: 34 | AM74: 35 | AN74: 36 | AO74: 37 | AP74: 38 | AQ74: 39 | AR74: 40 | AS74: 41 | AT74: 42 | AU74: 43 | AV74: 44 | AW74: 45 | AX74: 46 | AY74: 47 | AZ74: 48 | BA74: 49 | BB74: 50 | BC74: 51 | BD74: 52 | BE74: 53 | BF74: 54 | BG74: 55 | BH74: 56 | BI74: 57 | BJ74: 58 | BK74: 59 | BL74: 60 | BM74: 61 | BN74: 62 | BO74: 63 | BP74: 64 | BQ74: 65 | BR74: 66 | BS74: 67 | BT74: 68 | BU74: 69 | BV74: Important: check cash adjustments when converts to academy | BW74: 70 | BX74: 71
A75: DFE Num | B75: Type | C75: Fund Centre | D75: School | E75: Vendor Number | F75: Statistical Order | G75: Total SBS Inc EFA Grant | J75: SBS Only Excl EFA Grant (G-O) | K75: (PFI/PPI/BSF) V1 -In Year Adj to SBS | L75: NNDR Rates Deduction | O75: Insurance Deductions | P75: Revised SBS (G-I-J-K) | Q75: Top Slice 0.0089% | R75: Revised SBS Less Top Slice (L-M) | S75: EFA Grant | T75: Total Advances (N+O) | U75: Total Advances | W75: April Instalment | X75: April Adjustment | Y75: Actual April Payment | AA75: May Instalment | AB75: May Adjustment | AC75: Actual May Payment | AE75: June Instalment | AF75: June Adjustment | AG75: Actual June Payment | AI75: July Instalment | AJ75: July Adjustment | AK75: Actual July Payment | AM75: August Instalment | AN75: August Adjustment | AO75: Actual August Payment | AQ75: September Instalment | AR75: September Adjustment- | AS75: Actual September Payment | AU75: October Instalment | AV75: October Adjustment | AW75: Actual October Payment | AY75: November Instalment | AZ75: November Adjustment | BA75: Actual November Payment | BC75: December Instalment | BD75: December Adjustment | BE75: Actual December Payment | BG75: January Instalment | BH75: January Adjustment | BI75: Actual January Payment | BK75: February Instalment | BL75: February Adjustment | BM75: Actual February Payment | BO75: March Instalment | BP75: March Adjustment | BQ75: Actual March Payment | BS75: Total Instalments | BT75: Total Adjustments | BU75: Total Actual Payments Made To Sch | BV75: Check | BW75: Comments | BX75: Check:
A77: =A74-A4 -> 0 | B77: 0 | C77: 0 | D77: 0 | E77: 0 | F77: 0 | G77: 0 | J77: -2 | K77: -2 | L77: -2 | O77: -4 | P77: -4 | Q77: -4 | R77: -4 | S77: -4 | T77: -4 | U77: -4 | V77: =V74-V4 -> -4 | W77: -4 | X77: -4 | Y77: -4 | Z77: -4 | AA77: -4 | AB77: -4 | AC77: -4 | AD77: =AD74-AD4 -> -4 | AE77: -4 | AF77: -4 | AG77: -4 | AH77: -4 | AI77: -4 | AJ77: =AJ74-AJ4 -> -4 | AK77: -4 | AL77: -4 | AM77: -4 | AN77: -4 | AO77: -4 | AP77: -4 | AQ77: -4 | AR77: -4 | AS77: -4 | AT77: -4 | AU77: -4 | AV77: -4 | AW77: -4 | AX77: -4 | AY77: -4 | AZ77: -4 | BA77: -4 | BB77: -4 | BC77: -4 | BD77: -4 | BE77: -4 | BF77: -4 | BG77: -4 | BH77: -4 | BI77: -4 | BJ77: -4 | BK77: -4 | BL77: -4 | BM77: -4 | BN77: -4 | BO77: -4 | BP77: -4 | BQ77: -4 | BR77: -4 | BS77: -4 | BT77: -4 | BU77: -4
A78: =A75=A5 -> TRUE | B78: FALSE | C78: TRUE | D78: TRUE | E78: TRUE | F78: TRUE | G78: FALSE | J78: FALSE | K78: FALSE | L78: FALSE | O78: TRUE | P78: FALSE | Q78: FALSE | R78: FALSE | S78: FALSE | T78: FALSE | U78: FALSE | V78: =V75=V5 -> TRUE | W78: TRUE | X78: TRUE | Y78: TRUE | Z78: TRUE | AA78: TRUE | AB78: TRUE | AC78: TRUE | AD78: =AD75=AD5 -> TRUE | AE78: TRUE | AF78: TRUE | AG78: TRUE | AH78: TRUE | AI78: TRUE | AJ78: =AJ75=AJ5 -> TRUE | AK78: TRUE | AL78: TRUE | AM78: TRUE | AN78: TRUE | AO78: TRUE | AP78: TRUE | AQ78: TRUE | AR78: TRUE | AS78: TRUE | AT78: TRUE | AU78: TRUE | AV78: TRUE | AW78: TRUE | AX78: TRUE | AY78: TRUE | AZ78: TRUE | BA78: TRUE | BB78: TRUE | BC78: TRUE | BD78: TRUE | BE78: TRUE | BF78: TRUE | BG78: TRUE | BH78: TRUE | BI78: TRUE | BJ78: TRUE | BK78: TRUE | BL78: TRUE | BM78: TRUE | BN78: TRUE | BO78: TRUE | BP78: TRUE | BQ78: TRUE | BR78: TRUE | BS78: TRUE | BT78: TRUE | BU78: TRUE
AN94: =ROUND(($U$37-$Y$37)/11,0) -> -79135

Sheet Contact List (hidden)
A1: FULL CHEQUE BOOK SCHOOLS WEF 01/04/2023
A3: DFE Num | B3: Oracle Code | C3: School @Apr2023 | D3: Vendor Number | E3: Contact Name
A4: 2010 | B4: AX085 | C4: Adderley Primary School | E4: Vijay Patel
A5: 1017 | B5: AX087 | C5: Allens Croft Childrens Centre | E5: Linda Sewell
A6: 2300 | B6: AX008 | C6: Arden Primary | E6: Cameron Birkett
A7: 7016 | B7: AX00E | C7: Baskerville School | E7: Simone Ward
A8: 5413 | B8: AX08C | C8: Bishop Challoner Catholic College | E8: Vijay Patel
A9: 2402 | B9: AX08G | C9: Boldmere Infant & Nursery School | E9: Michelle Rudd
A10: 2401 | B10: AX00T | C10: Boldmere Junior School | E10: Vijay Patel
A11: 4115 | B11: AX08J | C11: Bordesley Green Girls School | E11: Linda Sewell
A12: 2030 | B12: AX08H | C12: Bordesley Green Primary School | E12: Linda Sewell
A13: 2238 | B13: AX08N | C13: Broadmeadow Infant & Nursery School | E13: Linda Sewell
A14: 2236 | B14: AX010 | C14: Broadmeadow Junior School | E14: Cameron Birkett
A15: 4801 | B15: AX08U | C15: Cardinal Wiseman Catholic Technology College | E15: Linda Sewell
A16: 2312 | B16: AX015 | C16: Chad Vale Primary School | E16: Michelle Rudd
A17: 7051 | B17: AX017 | C17: Cherry Oak School | E17: Cameron Birkett
A18: 2251 | B18: AX08W | C18: Chilcote Primary School | E18: Michelle Rudd
A19: 3002 | B19: AX01A | C19: Christ Church CE Primary School | E19: Linda Sewell
A20: 3319 | B20: AX019 | C20: Christ The King Catholic Primary School | E20: Vijay Patel
A21: 5416 | B21: AX091 | C21: Colmers School and Sixth Form College | E21: Michelle Rudd
A22: 2054 | B22: AX092 | C22: Colmore Infant School | E22: Linda Sewell
A23: 2053 | B23: AX093 | C23: Colmore Junior School | E23: Linda Sewell
A24: 2055 | B24: AX01J | C24: Cotteridge Primary | E24: Vijay Patel
A25: 2486 | B25: AX01Z | C25: Forestdale Primary School | E25: Vijay Patel
A26: 2296 | B26: AX027 | C26: Glenmead Primary School | E26: Simone Ward
A27: 2092 | B27: AX02H | C27: Hall Green Junior School | E27: Cameron Birkett
A28: 4015 | B28: AX0A2 | C28: Hodge Hill Girls School | E28: Cameron Birkett
A29: 4201 | B29: AX0A1 | C29: Hodge Hill School | E29: Simone Ward
A30: 4223 | B30: AX0A4 | C30: Holte School | E30: Linda Sewell
A31: 2015 | B31: AX032 | C31: James Watt Primary School | E31: Simone Ward
A32: 2462 | B32: AX03L | C32: Little Sutton Primary School | E32: Simone Ward
A33: 2127 | B33: AX0AN | C33: Lozells J & I School | E33: Linda Sewell
A34: 2129 | B34: AX03N | C34: Lyndon Green Infant School | E34: Vijay Patel
A35: 2128 | B35: AX03P | C35: Lyndon Green Junior School | E35: Simone Ward
A36: 2133 | B36: AX03V | C36: Marsh Hill Primary School | E36: Linda Sewell
A37: 3322 | B37: AX03X | C37: Maryvale Catholic Primary School | E37: Michelle Rudd
A38: 2416 | B38: AX041 | C38: Moor Hall Primary | E38: Linda Sewell
A39: 4245 | B39: AX0AW | C39: Moseley School | E39: Vijay Patel
A40: 3323 | B40: AX049 | C40: Oratory R C Primary School | E40: Simone Ward
A41: 7053 | B41: AX04C | C41: Oscott Manor | E41: Cameron Birkett
A42: 4173 | B42: AX0BD | C42: Queensbridge School | E42: Cameron Birkett
A43: 7033 | B43: AX0BK | C43: Selly Oak Trust School | E43: Simone Ward
A44: 4177 | B44: AX0BL | C44: Selly Park Tech College For Girls | E44: Michelle Rudd
A45: 1038 | B45: AX056 | C45: Shenleyfields Nursery School | E45: Simone Ward
A46: 2174 | B46: AX0BR | C46: Sladefield Infants School | E46: Michelle Rudd
A47: 3363 | B47: AX05Q | C47: St Dunstans Primary School | E47: Simone Ward
A48: 3377 | B48: AX066 | C48: St Jude's Catholic Primary School | E48: Simone Ward
A49: 3371 | B49: AX067 | C49: St Laurence Church Infant School | E49: Vijay Patel
A50: 3016 | B50: AX06F | C50: St Matthew's CE Primary School | E50: Cameron Birkett
A51: 4606 | B51: AX0C4 | C51: St Pauls Girls School | E51: Cameron Birkett
A52: 3428 | B52: AX06L | C52: St Peters CE Primary School | E52: Michelle Rudd
A53: 7014 | B53: AX07A | C53: Uffculme School | E53: Cameron Birkett
A54: 7009 | B54: AX0CG | C54: Victoria School | E54: Cameron Birkett
A55: 5203 | B55: AX0CH | C55: Walmley Infant School | E55: Vijay Patel
A56: 5202 | B56: AX0CJ | C56: Walmley Junior School | E56: Cameron Birkett
A57: 2308 | B57: AX0CL | C57: Welford School | E57: Cameron Birkett
A58: 2011 | B58: AX07P | C58: Wheelers Lane Primary School | E58: Vijay Patel
A59: 4193 | B59: AX07N | C59: Wheelers Lane Secondary | E59: Cameron Birkett
A60: 2293 | B60: AX07T | C60: William Murdoch Primary School | E60: Simone Ward
A61: 2225 | B61: AX0CQ | C61: Worlds End Junior School | E61: Simone Ward
A62: 2412 | B62: AX07Y | C62: Wylde Green Primary School | E62: Michelle Rudd
A63: 4237 | B63: AX0C8 | C63: Swanshurst | E63: Vijay Patel

Sheet Timetable (hidden)
B1: Cheque Book Schools -2023/24 Timetable for Submission of Financial Returns to Birmingham City Council
A3: Return Required | B3: Period Start | C3: Period End | D3: Report to be Produced On | E3: Reports to reach BCC By | F3: Payment Processed By BCC | G3: Payment Received By School
A4: April VAT return | B4: 2023-04-01 | C4: 2023-04-30 | D4: 2023-05-03 | E4: 2023-05-10 | F4: 2023-05-20 | G4: 2023-05-27
A5: May VAT return | B5: 2023-05-01 | C5: 2023-05-31 | D5: 2023-06-01 | E5: 2023-06-08 | F5: 2023-06-19 | G5: 2023-06-26
A6: June VAT return | B6: 2023-06-01 | C6: 2023-06-30 | D6: 2023-07-03 | E6: 2023-07-10 | F6: 2023-07-20 | G6: 2023-07-27
A7: July/August VAT return | B7: 2023-07-01 | C7: 2023-08-31 | D7: 2023-09-04 | E7: 2023-09-11 | F7: 2023-09-21 | G7: 2023-09-28
A8: September VAT return | B8: 2023-09-01 | C8: 2023-09-30 | D8: 2023-10-03 | E8: 2023-10-10 | F8: 2023-10-20 | G8: 2023-10-27
A9: October VAT return | B9: 2023-10-01 | C9: 2023-10-31 | D9: 2023-11-01 | E9: 2023-11-08 | F9: 2023-11-20 | G9: 2023-11-27
A10: November VAT return | B10: 2023-11-01 | C10: 2023-11-30 | D10: 2023-12-01 | E10: 2023-12-08 | F10: 2023-12-18 | G10: 2023-12-27
A11: December VAT return | B11: 2023-12-01 | C11: 2023-12-31 | D11: 2024-01-04 | E11: 2024-01-11 | F11: 2024-01-19 | G11: 2024-01-26
A12: January VAT return | B12: 2024-01-01 | C12: 2024-01-31 | D12: 2024-02-01 | E12: 2024-02-08 | F12: 2024-02-19 | G12: 2024-02-26
A13: February VAT return | B13: 2024-02-01 | C13: 2024-02-28 | D13: 2024-03-01 | E13: 2024-03-08 | F13: 2023-03-19 | G13: 2023-03-26
A14: March VAT return | B14: 2024-03-01 | C14: 2024-03-31 | D14: tbc- Closedown timetable | E14: tbc- Closedown timetable | F14: tbc- Closedown timetable | G14: tbc- Closedown timetable
B16: Termly Returns submission dates - (Annex B and Annex C)
A18: *Also submit Termly Return: | B18: Period to : | C18: 2023-06-30 | D18: Reports to be Received : | E18: TBC
A19: *Also submit Termly Return: | B19: Period to : | C19: 2023-12-31 | D19: Reports to be Received : | E19: 2024-01-12
A20: **Year End Workbook (YE) | D20: TBC/Proposed:
A21: Other: | B21: Return for July VAT return 2023: school's discretion
